Cogmind - Beta 15 @@@ ROGUE MODE // 2025.08.21 @ 21:18:44 Player: beans Result: Destroyed by S-27 Virus with Autogun Performance ------------- Evolutions (5) 2500 Regions Visited (9) 1800 Robots Destroyed (46) 230 Value Destroyed (1541) 1541 Prototype IDs (29) 580 Alien Tech Used (0) 0 Bonus (800) 800 TOTAL SCORE: 7451 Bonus ------- Entered DSFs 500 Aligned with FarCom 300 Cogmind --------- Core Integrity 0/1000 Matter 265/300 Energy 51/100 System Corruption 0% Temperature Cool (16) Movement Core (100) Ox1 Location -5/DSF Parts ------- > --- POWER (2) -------- (None) > --- PROPULSION (3) --- (None) > --- UTILITY (9) ------ 0b10 Alert Chip > --- WEAPON (3) ------- Phase Gun > --- INVENTORY (5) ---- Cooled VTOL Module Phase Gun Phase Gun Peak State ------------ > --- POWER ------------ Fission Core > --- PROPULSION ------- Advanced VSS Leg Advanced VSS Leg > --- UTILITY ---------- Power Amplifier High-capacity Matter Pod High-capacity Matter Pod High-capacity Matter Pod Visual Processing Unit 0b10 Alert Chip Core Analyzer > --- WEAPON ----------- Plasma Cannon Heavy Assault Cannon > --- INVENTORY -------- Cooled VTOL Module Advanced Beam Rifle Heavy Laser [Rating: 50] Favorites ----------- Power Light Angular Momentum Engine Engine Light Angular Momentum Engine Power Core Light Nuclear Core Propulsion Light Treads Treads Light Treads Leg Aluminum Leg Flight Unit Cesium-ion Thruster Utility High-capacity Matter Pod Device Shield Generator Storage High-capacity Matter Pod Processor Visual Processing Unit Weapon Medium Laser Energy Gun Medium Laser Energy Cannon Plasma Cannon Ballistic Gun Improved Assault Rifle Ballistic Cannon Heavy Assault Cannon Launcher Long-range Missile Launcher Special Weapon Welding Torch Slashing Weapon Scythe Build | -11 -10 -10 -10 -9 -8 -7 -6 -5 -5 ------- Run | Yrd Mat Min Exi Min Mat Fac Fac Fac DSF Slots Evolved 10 | . . . . . 4 2 2 2 . Power 1 | . . . . . . . . 1 . Propulsion 1 | . . . . . . . . 1 . Utility 7 | . . . . . 3 2 2 . . Weapon 1 | . . . . . 1 . . . . Parts Attached 48 | 6 3 1 . 1 19 6 2 1 9 Power 7 | 1 . 1 . . 2 1 1 1 . Engine 3 | 1 . . . . 2 . . . . Core 4 | . . 1 . . . 1 1 1 . Reactor . | . . . . . . . . . . Propulsion 12 | 2 . . . . 6 1 . . 3 Treads 4 | . . . . . 4 . . . . Leg 5 | 2 . . . . . . . . 3 Wheel . | . . . . . . . . . . Hover . | . . . . . . . . . . Flight 3 | . . . . . 2 1 . . . Utility 9 | . 2 . . . 3 3 1 . . Device 3 | . 1 . . . 1 . 1 . . Storage 3 | . . . . . . 3 . . . Processor 3 | . 1 . . . 2 . . . . Hackware . | . . . . . . . . . . Protection . | . . . . . . . . . . Artifact . | . . . . . . . . . . Weapon 20 | 3 1 . . 1 8 1 . . 6 Energy Gun 10 | 2 . . . 1 5 . . . 2 Energy Cannon 1 | . . . . . . 1 . . . Ballistic Gun 2 | 1 . . . . 1 . . . . Ballistic Cannon 1 | . . . . . 1 . . . . Launcher 4 | . . . . . . . . . 4 Special Weapon 1 | . 1 . . . . . . . . Impact Weapon . | . . . . . . . . . . Slashing Weapon 1 | . . . . . 1 . . . . Piercing Weapon . | . . . . . . . . . . Special Melee Weapon . | . . . . . . . . . . Unidentified Prototypes 6 | . . . . . 4 1 . 1 . Parts Lost 28 | . . . . . 8 1 . . 19 Power 3 | . . . . . 1 1 . . 1 Propulsion 6 | . . . . . 3 . . . 3 Utility 7 | . . . . . 1 . . . 6 Weapon 12 | . . . . . 3 . . . 9 Highest Loss Streak 17 | . . . . . 5 1 . . 17 To Critical Strikes . | . . . . . . . . . . Average Backups 3 | . 1 3 3 4 4 3 3 3 3 Power . | . . . . . . . . . . Propulsion . | . . . . . . . 1 1 1 Utility 1 | . 1 3 3 4 3 . . . . Weapon 1 | . . . . . 1 2 2 2 2 Tool/Special . | . . . . . . . . . . Unused Backups 2 | . . . 2 . . . . . . Power . | . . . . . . . . . . Propulsion . | . . . . . . . . . . Utility 2 | . . . 2 . . . . . . Weapon . | . . . . . . . . . . Tool/Special . | . . . . . . . . . . Average Slot Usage (%) 75 | . 86 100 100 100 57 81 75 70 57 Engine 4 | . 14 4 . . 5 6 . . . Core 4 | . . 9 14 14 . . 6 5 3 Treads 7 | . . . . . 9 15 13 11 . Leg 8 | . 28 28 28 28 . . . . 7 Device 4 | . 7 14 14 14 . . 2 5 4 Storage 8 | . . . . . . 21 20 17 11 Processor 17 | . 7 14 14 14 18 23 20 17 15 Energy Gun 10 | . 27 28 28 28 10 . . . 1 Energy Cannon 2 | . . . . . . 6 6 5 4 Ballistic Gun 1 | . . . . . 4 . . . . Ballistic Cannon 3 | . . . . . 1 7 6 5 3 Slashing Weapon 1 | . . . . . 4 . . . . Peak Build Rating 50 | 5 9 11 12 12 30 36 38 45 50 Average Rating 23 | 3 7 10 11 11 20 32 33 38 41 On Entrance 18 | . 5 9 11 11 12 30 32 38 38 Naked Turns . | . . . . . . . . . . Heaviest Build 42 | 9 11 11 11 11 25 40 42 42 42 Greatest Support 40 | 20 20 20 20 20 40 40 40 40 40 Greatest Overweight (x) 4 | . . . . . 4 1 1 1 3 Average Overweight (x) . | . . . . . . . . 1 1 Largest Inventory Capacity 5 | 5 5 5 5 5 5 5 5 5 5 Average Capacity 5 | 5 5 5 5 5 5 5 5 5 5 Most Carried 5 | 4 3 4 4 5 5 5 4 4 4 Average Carried 3 | . 1 3 3 4 4 2 3 3 3 Final Capacity 5 | 5 5 5 5 5 5 5 5 5 5 Final Carried 5 | . 3 3 4 5 5 3 3 3 3 Class Distribution -------------------- 48% | Skirmisher 28% | Mutant 15% | Assassin 5% | Scavenger-Skirmisher Dominant Class ---------------- Mutant | -10/Materials Mutant | -10/Mines Mutant | -10/Exiles Mutant | -9/Mines Assassin | -8/Materials Skirmisher | -7/Factory Skirmisher | -6/Factory Skirmisher | -5/Factory Skirmisher | -5/DSF Resources | -11 -10 -10 -10 -9 -8 -7 -6 -5 -5 ----------- Run | Yrd Mat Min Exi Min Mat Fac Fac Fac DSF Matter Collected 1410 | 192 65 60 599 10 235 147 12 . 90 Remotely . | . . . . . . . . . . Salvage Created 1988 | 19 15 . . 59 853 150 120 . 772 Parts 76 | . 3 . . 4 34 8 3 . 24 Haulers Intercepted 5 | . . . . . 4 . 1 . . Recyclers Shooed 2 | 2 . . . . . . . . . Parts Field Recycled . | . . . . . . . . . . Retrieved Matter . | . . . . . . . . . . Parts Self-Destructed . | . . . . . . . . . . Prevented . | . . . . . . . . . . Kills | -11 -10 -10 -10 -9 -8 -7 -6 -5 -5 ------- Run | Yrd Mat Min Exi Min Mat Fac Fac Fac DSF Combat Hostiles Destroyed 31 | . . . . 4 12 3 . . 12 Melee 4 | . . . . . 4 . . . . Guns 9 | . . . . 4 4 . . . 1 Cannons 9 | . . . . . 3 3 . . 3 AOE 8 | . . . . . . . . . 8 Classes Destroyed 12 | 1 1 . . 1 4 3 . . 2 Worker 5 | . . . . . 5 . . . . Builder 1 | . . . . . . 1 . . . Tunneler 1 | 1 . . . . . . . . . Hauler 5 | . . . . . 4 . 1 . . Watcher 3 | . 1 . . . . . 2 . . Swarmer 9 | . . . . 4 2 . . . 3 Grunt 11 | . . . . . 9 . . . 2 Sentry 2 | . . . . . 1 1 . . . Specialist 4 | . . . . . . . . . 4 Hunter 3 | . . . . . . 1 . . 2 Programmer 1 | . . . . . . 1 . . . Heavy 1 | . . . . . . . . . 1 Best Kill Streak 6 | 1 1 . . 4 5 1 1 . 6 Combat Bots Only 6 | . . . . 4 5 1 . . 6 Max Kills in Single Turn 4 | 1 1 . . 1 1 1 1 . 4 Gunslinging . | . . . . . . . . . . Exploded 4 | . . . . . . . . . 4 Melee 1 | . . . . . 1 . . . . Uniques/NPCs Destroyed . | . . . . . . . . . . Combat | -11 -10 -10 -10 -9 -8 -7 -6 -5 -5 -------- Run | Yrd Mat Min Exi Min Mat Fac Fac Fac DSF Hostile Shots Fired 392 | . . 2 . 19 149 15 . . 207 Missed 118 | . . 1 . 3 45 5 . . 64 Hits 274 | . . 1 . 16 104 10 . . 143 Projectile 274 | . . 1 . 16 104 10 . . 143 Critical Strikes 3 | . . . . . 2 . . . 1 Damage Taken 4040 | . . 10 . 88 1203 108 . . 2631 Core 1472 | . . . . 27 427 18 . . 1000 Absorbed by Shields 43 | . . 4 . 39 . . . . . Core Remaining (%) 81 | 100 . . . 89 22 97 100 . . Volleys Fired 125 | 6 7 . . 8 58 9 6 . 31 Largest 2 | 2 2 . . 2 2 2 2 . 2 Hottest 160 | 100 100 . . 100 119 130 130 . 160 Shots Fired 201 | 12 11 . . 16 87 18 12 . 45 Gun 128 | 12 8 . . 16 82 . . . 10 Cannon 60 | . . . . . 5 18 12 . 25 Launcher 10 | . . . . . . . . . 10 Special 3 | . 3 . . . . . . . . Kinetic 29 | 2 . . . . 5 9 6 . 7 Thermal 154 | 10 11 . . 15 75 9 6 . 28 Explosive 10 | . . . . . . . . . 10 Electromagnetic 8 | . . . . 1 7 . . . . Robot Hit Streak 10 | 3 3 . . 3 10 3 4 . 5 Robot Miss Streak 4 | 1 2 . . 2 4 4 3 . 4 Penetration Max . | . . . . . . . . . . Secondary Targets 4 | . . . . 2 2 . . . . Max Gunslinging Chain 1 | . . . . 1 1 . . . . Shots Hit Robots 122 | 7 3 . . 7 61 8 6 . 30 Core Hits 83 | 2 1 . . 4 26 4 4 . 42 Critical Kills . | . . . . . . . . . . Critical Parts Destroyed . | . . . . . . . . . . Critical Strikes 12 | 1 . . . 2 7 1 . . 1 Burn 4 | 1 . . . 2 1 . . . . Blast 4 | . . . . . 2 1 . . 1 Sever 4 | . . . . . 4 . . . . Melee Attacks 19 | . . . . . 19 . . . . Impact . | . . . . . . . . . . Slashing 19 | . . . . . 19 . . . . Piercing . | . . . . . . . . . . Sneak Attacks 2 | . . . . . 2 . . . . Combat Hostiles . | . . . . . . . . . . Follow-up Attacks . | . . . . . . . . . . Damage Inflicted 4417 | 84 36 . . 100 1354 407 285 . 2151 Guns 1043 | 84 36 . . 100 657 . . . 166 Cannons 1479 | . . . . . 232 407 285 . 555 Explosions 1430 | . . . . . . . . . 1430 Melee 465 | . . . . . 465 . . . . Ramming . | . . . . . . . . . . Kinetic 1082 | 11 . . . . 232 352 210 . 277 Thermal 1401 | 73 36 . . 100 618 55 75 . 444 Explosive 1430 | . . . . . . . . . 1430 Electromagnetic 39 | . . . . . 39 . . . . Impact . | . . . . . . . . . . Slashing 465 | . . . . . 465 . . . . Piercing . | . . . . . . . . . . Highest Corruption . | . . . . . . . . . . Average Corruption . | . . . . . . . . . . Corruption Purged . | . . . . . . . . . . Corruption Blocked . | . . . . . . . . . . Overload Shots . | . . . . . . . . . . Overflow Damage 120 | . . . . . 9 60 24 . 27 Projectiles 108 | . . . . . 9 60 24 . 15 Explosions 12 | . . . . . . . . . 12 Melee . | . . . . . . . . . . Knockbacks 5 | . . . . . 1 1 1 . 2 Impact . | . . . . . . . . . . Kinetic 5 | . . . . . 1 1 1 . 2 Secondary . | . . . . . . . . . . Self-Inflicted Damage 22 | . . . . . . . . . 22 Shots 1 | . . . . . . . . . 1 Rammed . | . . . . . . . . . . Targets Rammed . | . . . . . . . . . . Kicked . | . . . . . . . . . . Crushed . | . . . . . . . . . . Highest Temperature 281 | 48 117 . . 281 213 96 78 . 39 Average Temperature 60 | 22 50 . . 130 59 44 28 . 21 Received Heat Transfer 801 | . . 6 . . 405 12 . . 378 Siege Activations . | . . . . . . . . . . Martial Activations . | . . . . . . . . . . Shielding Activations . | . . . . . . . . . . Robots Disrupted . | . . . . . . . . . . Combat Hostiles . | . . . . . . . . . . Robots Corrupted . | . . . . . . . . . . Combat Hostiles . | . . . . . . . . . . Parts Fried . | . . . . . . . . . . Impact Corruptions . | . . . . . . . . . . Robots Melted 1 | . . . . . 1 . . . . Combat Hostiles 1 | . . . . . 1 . . . . Parts Melted 6 | . . . . 2 2 1 . . 1 Heat Transferred 3615 | 296 111 . . 444 1628 100 150 . 886 Parts Sabotaged . | . . . . . . . . . . Parts Stolen . | . . . . . . . . . . Parts Stripped . | . . . . . . . . . . Power Chain Reactions . | . . . . . . . . . . Alert | -11 -10 -10 -10 -9 -8 -7 -6 -5 -5 ------- Run | Yrd Mat Min Exi Min Mat Fac Fac Fac DSF Maximum Alert Level 1 | . . . . . . . . . 1 Low Security (%) 99 | 100 100 100 . 100 100 100 100 100 99 Level 1 . | . . . . . . . . . . Level 2 . | . . . . . . . . . . Level 3 . | . . . . . . . . . . Level 4 . | . . . . . . . . . . Level 5 . | . . . . . . . . . . High Security . | . . . . . . . . . . Max Security . | . . . . . . . . . . Sterilizations 1 | . . . . . . . . . 1 Peak Influence 208 | 5 7 . . 80 70 24 20 . 208 Initial 8 | . . . . . . 7 8 . 2 Average 15 | 1 . . . 29 19 3 2 . 54 Influence Increases 989 | 5 7 . . 90 373 101 43 4 366 Destroy 0b10 Robot/C 512 | . . . . 80 192 48 . . 192 Destroy 0b10 Robot/NC 78 | 5 5 . . . 36 4 12 . 16 Destroy Leader 106 | . 2 . . 10 40 24 6 . 24 Successful Hack 4 | . . . . . . . . 4 . Disable Machine 72 | . . . . . 24 12 24 . 12 Destroy Structure 145 | . . . . . 33 1 1 . 110 Lose Combat Pursuer 72 | . . . . . 48 12 . . 12 Influence Decreases 811 | 5 7 . . 90 356 100 61 . 192 Entered New Map 22 | . . . . . . 10 10 . 2 Time Decay 529 | 5 7 . . 90 286 90 51 . . Lost Part 260 | . . . . . 70 . . . 190 Squads Dispatched 7 | . 2 . . . 1 2 . . 2 Investigation . | . . . . . . . . . . Extermination 1 | . . . . . . 1 . . . Reinforcement 6 | . 2 . . . 1 1 . . 2 Assault . | . . . . . . . . . . Garrison . | . . . . . . . . . . Intercept . | . . . . . . . . . . Searches Triggered . | . . . . . . . . . . Construction Impeded . | . . . . . . . . . . Haulers Reinforced . | . . . . . . . . . . Active Scanning Responses . | . . . . . . . . . . Cargo Convoy Interrupts . | . . . . . . . . . . Stealth | -11 -10 -10 -10 -9 -8 -7 -6 -5 -5 --------- Run | Yrd Mat Min Exi Min Mat Fac Fac Fac DSF Distress Signals 3 | . 1 . . . 2 . . . . Communications Jammed . | . . . . . . . . . . Distress Signals . | . . . . . . . . . . Times Spotted 56 | . 3 2 . 3 19 6 3 . 20 Peak Tracking Total 10 | . 2 1 . 3 7 2 3 . 10 Tactical Retreats 5 | . . . . . 3 1 . . 1 Traps | -11 -10 -10 -10 -9 -8 -7 -6 -5 -5 ------- Run | Yrd Mat Min Exi Min Mat Fac Fac Fac DSF Traps Triggered 1 | . . . . . . . . . 1 Indirectly . | . . . . . . . . . . Trap Hack Attempts . | . . . . . . . . . . Triggered . | . . . . . . . . . . Disarmed . | . . . . . . . . . . Reprogrammed . | . . . . . . . . . . Reused . | . . . . . . . . . . Traps Extracted . | . . . . . . . . . . Installed . | . . . . . . . . . . Triggered . | . . . . . . . . . . Machines | -11 -10 -10 -10 -9 -8 -7 -6 -5 -5 ---------- Run | Yrd Mat Min Exi Min Mat Fac Fac Fac DSF Machines Disabled 6 | . . . . . 2 1 2 . 1 Max in Single Turn 1 | . . . . . 1 1 1 . 1 Machines Repaired . | . . . . . . . . . . Machines Dismantled . | . . . . . . . . . . Machines Sabotaged . | . . . . . . . . . . Overloaded Fab Kills . | . . . . . . . . . . Hacking | -11 -10 -10 -10 -9 -8 -7 -6 -5 -5 --------- Run | Yrd Mat Min Exi Min Mat Fac Fac Fac DSF Machines Accessed 3 | . . . 2 . . . . 1 . Terminals 1 | . . . . . . . . 1 . Fabricators . | . . . . . . . . . . Repair Stations . | . . . . . . . . . . Recycling Units . | . . . . . . . . . . Scanalyzers . | . . . . . . . . . . Garrison Access . | . . . . . . . . . . Total Hacks 26 | . . . 24 . . . . 2 . Successful 25 | . . . 24 . . . . 1 . Failed 1 | . . . . . . . . 1 . Catastrophic . | . . . . . . . . . . Database Lockouts . | . . . . . . . . . . Manual 1 | . . . 1 . . . . . . Terminals 2 | . . . . . . . . 2 . Fabricators . | . . . . . . . . . . Repair Stations . | . . . . . . . . . . Recycling Units . | . . . . . . . . . . Scanalyzers . | . . . . . . . . . . Garrison Access . | . . . . . . . . . . Terminal Hacks 25 | . . . 24 . . . . 1 . Record 23 | . . . 23 . . . . . . Open DSF 1 | . . . . . . . . 1 . Proto ID Catalog 1 | . . . 1 . . . . . . Fabricator Hacks . | . . . . . . . . . . Repair Station Hacks . | . . . . . . . . . . Recycling Unit Hacks . | . . . . . . . . . . Scanalyzer . | . . . . . . . . . . Garrison Access Hacks . | . . . . . . . . . . Unauthorized Hacks . | . . . . . . . . . . Terminals . | . . . . . . . . . . Fabricators . | . . . . . . . . . . Repair Stations . | . . . . . . . . . . Recycling Units . | . . . . . . . . . . Scanalyzers . | . . . . . . . . . . Garrison Access . | . . . . . . . . . . Data Cores Recovered 1 | . 1 . . . . . . . . Used . | . . . . . . . . . . Hacking Detections 1 | . . . . . . . . 1 . Full Trace Events . | . . . . . . . . . . Feedback Events . | . . . . . . . . . . Feedback Blocked . | . . . . . . . . . . Robot Schematics Acquired . | . . . . . . . . . . Robots Built . | . . . . . . . . . . Authchips . | . . . . . . . . . . Time . | . . . . . . . . . . Total Robot Build Rating . | . . . . . . . . . . Part Schematics Acquired . | . . . . . . . . . . Parts Built . | . . . . . . . . . . Authchips . | . . . . . . . . . . Time . | . . . . . . . . . . Total Part Build Rating . | . . . . . . . . . . Parts Repaired . | . . . . . . . . . . Time . | . . . . . . . . . . Parts Recycled . | . . . . . . . . . . Recycled Matter . | . . . . . . . . . . Retrieved Matter . | . . . . . . . . . . Retrieved Components . | . . . . . . . . . . Parts Scanalyzed . | . . . . . . . . . . Part Schematics Acquired . | . . . . . . . . . . Parts Damaged . | . . . . . . . . . . Bothacking | -11 -10 -10 -10 -9 -8 -7 -6 -5 -5 ------------ Run | Yrd Mat Min Exi Min Mat Fac Fac Fac DSF Used RIF Installer . | . . . . . . . . . . Robots Hacked . | . . . . . . . . . . Non-combat . | . . . . . . . . . . Combat . | . . . . . . . . . . Robot Hacks Applied . | . . . . . . . . . . Relay Couplers Released . | . . . . . . . . . . Fabnet Peak Effective % . | . . . . . . . . . . Robots Rewired . | . . . . . . . . . . Allies Hacked . | . . . . . . . . . . Hacks Repelled . | . . . . . . . . . . Allies | -11 -10 -10 -10 -9 -8 -7 -6 -5 -5 -------- Run | Yrd Mat Min Exi Min Mat Fac Fac Fac DSF Total Allies . | . . . . . . . . . . Largest Group . | . . . . . . . . . . Highest-Rated Group . | . . . . . . . . . . Highest-Rated Ally . | . . . . . . . . . . Total Orders . | . . . . . . . . . . Ally Attacks . | . . . . . . . . . . Total Damage . | . . . . . . . . . . Kills . | . . . . . . . . . . Allies Corrupted . | . . . . . . . . . . Allies Melted . | . . . . . . . . . . Intel | -11 -10 -10 -10 -9 -8 -7 -6 -5 -5 ------- Run | Yrd Mat Min Exi Min Mat Fac Fac Fac DSF Active Infowar (turns) 3702 | . 152 52 366 279 1166 829 375 132 351 Optics 3702 | . 152 52 366 279 1166 829 375 132 351 Robot Analysis Total . | . . . . . . . . . . Derelict Logs Recovered . | . . . . . . . . . . Drone Launches . | . . . . . . . . . . Drone Recoveries . | . . . . . . . . . . Exploration | -11 -10 -10 -10 -9 -8 -7 -6 -5 -5 ------------- Run | Yrd Mat Min Exi Min Mat Fac Fac Fac DSF Turns Passed 3945 | 79 284 52 366 279 1166 829 375 132 383 Spaces Moved 2153 | 49 205 40 268 211 648 348 197 54 133 Core 75 | 17 . . . . 43 . . . 15 Treads 1081 | . . . . . 478 348 197 54 4 Legs 906 | 32 205 40 268 211 36 . . . 114 Wheels . | . . . . . . . . . . Hover . | . . . . . . . . . . Flight 91 | . . . . . 91 . . . . Fastest Speed 32 | 50 120 120 120 120 32 160 160 240 50 Average Speed 153 | 95 120 120 120 120 140 222 166 240 178 Slowest Speed 270 | 120 120 120 120 120 250 240 240 240 270 Overloaded Moves . | . . . . . . . . . . Propulsion Burnouts . | . . . . . . . . . . Robots Hopped 2 | . . . . . 2 . . . . Potential Cave-ins . | . . . . . . . . . . Cave-ins Triggered . | . . . . . . . . . . Exploration Rate (%) 32 | 4 36 10 65 65 47 11 11 1 71 Regions Visited 9 Branch Regions 3 Pre-discovered Areas 1 | . . . 1 . . . . . . Known Exits Taken 1 | . . . . . . . . 1 . Unknown Exits Taken 8 | 1 1 1 1 1 1 1 1 . . Scrap Searched 1 | . . . . 1 . . . . . Spaces Dug . | . . . . . . . . . . Terrain Destroyed 130 | . . . . . 44 1 1 . 84 Melee . | . . . . . . . . . . Projectile 8 | . . . . . 3 1 1 . 3 AOE 122 | . . . . . 41 . . . 81 Terrain Rammed . | . . . . . . . . . . Walls Destroyed . | . . . . . . . . . . Machines Disabled . | . . . . . . . . . . Actions | -11 -10 -10 -10 -9 -8 -7 -6 -5 -5 --------- Run | Yrd Mat Min Exi Min Mat Fac Fac Fac DSF Total 2557 | 69 231 44 313 220 785 380 230 58 227 Wait 147 | 2 9 2 41 . 18 13 23 . 39 Move 2140 | 48 204 39 267 210 643 347 196 53 133 Hop 2 | . . . . . 2 . . . . Pick Up 46 | 6 6 1 3 1 12 2 2 2 11 Fast Attach 7 | . . . . . 7 . . . . Attach 40 | 6 3 . . . 11 6 2 1 11 Detach 3 | . . . . . 1 2 . . . Swap 8 | . 1 1 . 1 4 1 . . . Drop 20 | 1 1 1 2 . 10 . 1 2 2 Fire 125 | 6 7 . . 8 58 9 6 . 31 Melee 19 | . . . . . 19 . . . . Ram . | . . . . . . . . . . Kick . | . . . . . . . . . . Crush . | . . . . . . . . . . Escape Stasis . | . . . . . . . . . . Rewire . | . . . . . . . . . . Trap . | . . . . . . . . . . Miscellaneous . | . . . . . . . . . . Route ------- -11/Scrapyard -10/Materials -10/Mines -10/Exiles -9/Mines -8/Materials (discovered 2 exits: [*Fac] / [*Sto]) -7/Factory -6/Factory -5/Factory -5/DSF History --------- Turn | Location | Event 3 | -11/Scrapyard | Discovered new exit (range 16) 80 | -11/Scrapyard | Entered Materials 263 | -10/Materials | Met 8R-AWN 309 | -10/Materials | Build established: Mutant 349 | -10/Materials | Discovered new exit (range 10) 364 | -10/Materials | Entered Mines 365 | -10/Mines | Followed 8R-AWN into the Mines 411 | -10/Mines | Discovered new exit (range 5) 416 | -10/Mines | Entered Exiles 451 | -10/Exiles | Welcomed by 8R-AWN 468 | -10/Exiles | Met EX-HEX 505 | -10/Exiles | Met EX-BIN 522 | -10/Exiles | Aligned with FarCom system 523 | -10/Exiles | Given EX-Vault access code 553 | -10/Exiles | Opened EX-Vault 566 | -10/Exiles | Found Cloak of Protection 575 | -10/Exiles | Found PSU Rigger 579 | -10/Exiles | Found 0b10 Alert Chip 603 | -10/Exiles | Warned to stay clear of 0b10 Research branches 640 | -10/Exiles | Met EX-DEC 657 | -10/Exiles | Learned location of Zion (-6) 770 | -10/Exiles | Discovered new exit (range 10) 782 | -10/Exiles | Left Exiles lab with 0b10 Alert Chip 782 | -10/Exiles | Entered Mines 1029 | -9/Mines | Discovered new exit (range 5) 1061 | -9/Mines | Entered Materials 1061 | -8/Materials | Evolved 4 slots: Utility x3, Weapon x1 1207 | -8/Materials | Lost 3 parts (1p1n1w) 1398 | -8/Materials | Core integrity fell below 50% 1425 | -8/Materials | Lost 5 parts (2n1u2w) 1666 | -8/Materials | Met 7R-MNS 1671 | -8/Materials | Discovered new exit (range 18) 1690 | -8/Materials | Build established: Assassin 2202 | -8/Materials | Discovered new exit (range 17) 2227 | -8/Materials | Entered Factory 2227 | -7/Factory | Evolved 2 slots: Utility x2 2228 | -7/Factory | Caught up to 7R-MNS 2555 | -7/Factory | Build established: Skirmisher 2955 | -7/Factory | Discovered new exit (range 18) 3056 | -7/Factory | Entered another Factory area 3056 | -6/Factory | Evolved 2 slots: Utility x2 3057 | -6/Factory | Caught up to 7R-MNS 3363 | -6/Factory | Discovered new exit (range 15) 3431 | -6/Factory | Entered another Factory area 3431 | -5/Factory | Evolved 2 slots: Power x1, Propulsion x1 3563 | -5/Factory | Identified exit to DSF 3563 | -5/Factory | Entered DSF 3580 | -5/DSF | Additional patrols routed to DSF 3910 | -5/DSF | Core integrity fell below 50% 3915 | -5/DSF | Sterilization system engaged 3935 | -5/DSF | Ambient heat levels rising (+10) 3935 | -5/DSF | Core integrity fell below 20% 3946 | -5/DSF | Destroyed by S-27 Virus with Autogun Last Messages --------------- Hcp. Matter Pod destroyed. The unstable cave ceiling collapses. Destroyed Lgt. Nuclear Core. Destroyed VTOL Module. A-15 Conveyor destroyed. The unstable cave ceiling collapses. Lrn. Missile Launcher destroyed. Slug penetrates Wall. The unstable cave ceiling collapses. Hvy. Laser destroyed. Penetrated by Slug. C-30 ARC bursts open, deploying its payload. H-66 Slayer unfolds itself. Penetrated by Slug. ALERT: Ambient heat levels +10. Penetrated by Slug. The unstable cave ceiling collapses. Acquired Phase Gun. Slug penetrates Wall. Acquired Phase Gun. Map ----- +----------------------------------------------------+ | ??????????????????????????????????????????? | | ??????????##?????????????????????????###??? | | ?????????""#?????????##??????????????#""??? | | ?????????#"#?????????# #?????????????#"#??? | | ??????####"##???????##"######???????##"#### | | ??????#"""""######### !!#########"""""# | | ??????#"""""##!!#!!!#% %!!#!!!#!!##"""""# | | ???#"##"" ""# | | ???#""""" % = """ | | ???####"% ##!!# ##" ###!!!#!!"" [ ""# | | ??????### ###!!# #"" ###!!!#!!#"#= ### | | ???????##%[########## ]##########%%#?? | | ???????#!% !!#??????# #?#??????! !#? | | ???????#! !!#??????# ]# ##?????! !#? | | ???????## ###????#### # #????## ##? | | ???????#! #????# #! #####?! !?? | | ???????#! #???## #?! !?? | | ???????#! #???# [ % # #?! !#? | | ??????### ####?#### [ ## # ## ##? | | ??????# ## #!! =[ "%!## !?? | | ??????# ## #!! % % " ## !?? | | ??????# s Y h h ?? | | ??????# s[ = ?? | | ??????# * =*] ?? | | ??????# ## #[ [# %*! % ]]]## !?? | | ??????# ## #[@ # % # ! ]]]#? !?? | | ??????################ # #####?????? | | ?????????????????????!! !! #????????? | | ?????????????????????!! !!##### ????????? | | ?????????????????????!! !!#?????????????? | | ?????????????????????## ###?????????????? | | ??????????????????????? =???????????????? | | ??????????????????????? ==??????????????? | | ??????????????????????? ==#?????????????? | | ???????????????????????? ?#???????????????? | | ??????????????????????????????????????????? | | ??????????????????????????????????????????? | | ??????????????????????????????????????????? | | ??????????????????????????????????????????? | | ??????????????????????????????????????????? | | ??????????????????????????????????????????? | | ??????????????????????????????????????????? | | ??????????????????????????????????????????? | | ??????????????????????????????????????????? | | ??????????????????????????????????????????? | | ??????????????????????????????????????????? | | ??????????????????????????????????????????? | | ??????????????????????????????????????????? | | | | | +----------------------------------------------------+ Best States ------------- Heat Dissipation 45 Energy Generation 20 Energy Capacity 310 Matter Stores 900 Matter Capacity 900 Sight Range 18 Terrain Scan Density 10 Power Amplification 20 Evasion (%) 63 Core Analysis 6 Recoil Reduction 2 Item Schematics ----------------- None Robot Schematics ------------------ None Fabricated ------------ Nothing Repaired ---------- Nothing Alien Tech Used ----------------- None Achievements -------------- None Challenges ------------ None Game ------ Seed ThermicPortableSlayer Manual? 0 Play Time 00:28:19 Cumulative 98.9 hours Start 2025.08.21 @ 17:14:41 End 2025.08.21 @ 21:18:44 Sessions 1 Manual Loads 0 Difficulty Rogue Special Mode None Game No. 380 Rogue 380 Adventurer 0 Explorer 0 Win Type - Total 0 Types 0/0/0/0/0/0/0/0/0/0 Lore% 43 Gallery% 41 Achievement% 31 Wizard Run 0 Options --------- Layout 2 ASCII 0 Keyboard 0 Movement Mouse Keybinds 0 Fullscreen 2 Font 24/Smallcaps Map View 50x44 Zoom Use 0% Tactical HUD 0 Map Filters NONE Filters NONE Steam 1 RUN: 57976a47-54cd-4a9b-96f6-21e72052f59b